lending/lending_fUSD_20250408
["ID","MTS","AMOUNT","RATE_DAILY","PERIOD"]
[357508392,1744096231757,-1917.29626969,0.00018744,2]
[357508393,1744096231768,-487.42407547,0.00018744,2]
[357508940,1744096237595,-1643.70703568,0.00018744,2]
[357508941,1744096237604,-1042.54,0.0001881,2]
[357508943,1744096237614,-200.0,0.00019215,7]
[357508945,1744096237623,-250.0,0.000194,2]
[357508948,1744096237634,-300.0,0.000194,7]
[357508949,1744096237643,-168.3,0.00019605,2]
[357508951,1744096237653,-168.3,0.0001963,2]
[357508953,1744096237663,-1605.215503,0.00019654,2]
[357508955,1744096237672,-168.3,0.00019654,2]
[357508957,1744096237681,-168.3,0.00019679,2]
[357508959,1744096237690,-168.3,0.00019703,2]
[357508961,1744096237700,-164.77,0.00019715,2]
[357508963,1744096237709,-250.0,0.00019753,2]
[357508966,1744096237719,-300.0,0.00019761,2]
[357508968,1744096237728,-9248.93700304,0.00019762,2]
[357508970,1744096237739,-3147.89525311,0.00019762,2]
[357508972,1744096237751,-849.02319621,0.00019762,2]
[357508974,1744096237762,-941.57868834,0.00019762,2]
[357508976,1744096237775,-2884.2873413,0.00019762,2]
[357508978,1744096237786,-5596.98,0.00019762,2]
[357508982,1744096237810,-592.14361496,0.00019762,2]
[357508984,1744096237821,-289.9226039,0.00019762,2]
[357508987,1744096237836,-349.23229914,0.00019762,2]
[357508989,1744096237845,-321.20316186,0.000198,2]
[357508991,1744096237856,-1016.2321986,0.000198,2]
[357508993,1744096237871,-329.46693954,0.000198,2]
[357508995,1744096237880,-200.0,0.0001984,2]
[357508997,1744096237890,-9385.69490572,0.0001989,2]
[357508999,1744096237901,-1650.43404456,0.0001989,2]
[357509001,1744096237912,-587.02974874,0.0001989,2]
[357509003,1744096237921,-176.69701035,0.00019899,2]
[357509005,1744096237930,-524.8887,0.000199,2]
[357509007,1744096237939,-14714.8081,0.000199,2]
[357509009,1744096237948,-991.1077,0.000199,2]
[357509011,1744096237958,-856.7983,0.000199,2]
[357509013,1744096237969,-163.49443729,0.000199,2]
[357509015,1744096237979,-687.39402302,0.000199,2]
[357509017,1744096237988,-654.6534688,0.000199,2]
[357509019,1744096237997,-150.8020061,0.000199,2]
[357509021,1744096238007,-182.30993346,0.000199,2]
[357509023,1744096238016,-210.57292899,0.000199,2]
[357509025,1744096238026,-444.11503385,0.000199,2]
[357509027,1744096238041,-396.755,0.000199,2]
[357509030,1744096238053,-612.60000005,0.000199,2]
[357509032,1744096238064,-599.73664137,0.000199,2]
[357509034,1744096238076,-348.23005832,0.000199,2]
[357509036,1744096238087,-404.71345094,0.000199,2]
[357509039,1744096238099,-283.41464926,0.000199,2]
[357509045,1744096238151,-1179.5372909,0.000199,2]
[357509047,1744096238163,-74875.47897531,0.000199,2]
[357509049,1744096238172,-4385.71953032,0.000199,2]
[357509052,1744096238182,-663.33613786,0.000199,2]
[357509055,1744096238191,-458.09270849,0.00019973,2]
[357509058,1744096238200,-197.66660026,0.00019973,2]
[357509060,1744096238210,-353.2652265,0.00019973,2]
[357509062,1744096238219,-500.0,0.00019973,2]
[357509064,1744096238229,-500.0,0.00019973,2]
[357509066,1744096238239,-152.42514032,0.00019973,2]
[357509068,1744096238250,-500.0,0.00019973,2]
[357509070,1744096238260,-747.524,0.00019973,2]
[357509072,1744096238269,-12801.7402913,0.00019995,2]
[357509074,1744096238279,-77188.2334279,0.00019995,2]
[357509076,1744096238289,-5062.1691187,0.00019995,2]
[357509078,1744096238299,-500.0,0.00019999,2]
[357509080,1744096238309,-500.0,0.00019999,2]
[357509082,1744096238319,-500.0,0.00019999,2]
[357509084,1744096238328,-500.0,0.00019999,2]
[357509086,1744096238338,-500.0,0.00019999,2]
[357509088,1744096238346,-500.0,0.00019999,2]
[357509090,1744096238355,-500.0,0.00019999,2]
[357509092,1744096238365,-500.0,0.00019999,2]
[357509094,1744096238374,-500.0,0.00019999,2]
[357509096,1744096238384,-500.0,0.00019999,2]
[357509098,1744096238404,-500.0,0.00019999,2]
[357509100,1744096238413,-500.0,0.00019999,2]
[357509102,1744096238422,-500.0,0.00019999,2]
[357509104,1744096238431,-500.0,0.00019999,2]
[357509106,1744096238440,-500.0,0.00019999,2]
[357509107,1744096238449,-500.0,0.00019999,2]
[357509109,1744096238458,-500.0,0.00019999,2]
[357509111,1744096238468,-348.00650749,0.00019999,2]
[357509113,1744096238477,-500.0,0.00019999,2]
[357509115,1744096238487,-500.0,0.00019999,2]
[357509118,1744096238496,-500.0,0.00019999,2]
[357509119,1744096238505,-500.0,0.00019999,2]
[357509122,1744096238518,-500.0,0.00019999,2]
[357509123,1744096238528,-500.0,0.00019999,2]
[357509126,1744096238537,-500.0,0.00019999,2]
[357509127,1744096238546,-400.0,0.00019999,2]
[357509129,1744096238556,-1437.0,0.0002,2]
[357509131,1744096238566,-118137.91800533,0.0002,2]
[357509133,1744096238575,-150.0,0.0002,2]
[357509135,1744096238584,-89636.22036964,0.0002,2]
[357509201,1744096239331,-511.36323944,0.0002,2]
[357509203,1744096239342,-437.22126349,0.0002,2]
[357509205,1744096239353,-496.99999,0.0002,2]
[357509208,1744096239364,-784.500026,0.0002,2]
[357509210,1744096239375,-286.49996773,0.0002,2]
[357509267,1744096239892,-300.0,0.000195,7]
[357509271,1744096239924,-300.0,0.000195,7]
[357509273,1744096239934,-328570.40367702,0.0002,2]
[357509277,1744096239957,-464.86247294,0.0002,2]
[357509279,1744096239969,-33365.37119513,0.0002,2]
[357509282,1744096239983,-2768.10488298,0.0002,2]
[357509284,1744096240002,-6479.34772063,0.0002,2]
[357509287,1744096240014,-13672.83588239,0.0002,2]
[357509647,1744096243503,-166.66,0.00019532,2]
[357509649,1744096243512,-312.66723893,0.000196,7]
[357509656,1744096243577,-687.33276107,0.000196,7]
[357509658,1744096243586,-1300.0,0.000197,7]
[357509660,1744096243597,-6074.60850713,0.0002,2]
[357509663,1744096243609,-2700.0,0.0002,2]
[357509665,1744096243623,-962.36821907,0.0002,2]
[357509667,1744096243634,-619.819988,0.0002,2]
[357509669,1744096243645,-2771.07282078,0.0002,2]
[357509672,1744096243664,-1270.0003,0.0002,2]
[357509675,1744096243676,-5047.1909532,0.0002,2]
[357509677,1744096243687,-8621.80687808,0.0002,2]
[357509879,1744096245722,-1120.31332631,0.000198,7]
[357509907,1744096245978,-328.37758094,0.000198,7]
[357511084,1744096988430,14771.015762,7.945e-05,2]
[357511085,1744097026096,200.0,0.00010959,2]
[357511086,1744097136312,6667.39459783,8e-05,2]
[357511095,1744097237662,205.0,9.8e-05,2]
[357511254,1744097307889,1861.19797931,0.0001,2]
[357511255,1744097315204,2814.81324124,9.828e-05,2]
[357511256,1744097327740,42480.57841962,0.00013368,2]
[357511257,1744097327768,140.132939,0.00013368,2]
[357511258,1744097327793,2000.0,0.00013368,2]
[357511259,1744097327818,2000.0,0.00013368,2]
[357511260,1744097327848,1881.54285666,0.00013368,2]
[357511261,1744097338159,-1811.64335702,0.00015,2]
[357511262,1744097338194,-6059.05187868,0.00015,2]
[357511263,1744097338240,-6435.08411319,0.00015,2]
[357511267,1744097363077,-8156.81082267,0.00015,2]
[357511268,1744097363135,-7082.99765166,0.00015,2]
[357511269,1744097388165,-8461.60699216,0.00015,2]
[357511270,1744097388393,-258.6360959,0.00015,2]
[357511271,1744097388482,-8461.60699216,0.00015,2]
[357511275,1744097431720,-300.0,0.00014999,2]
[357511277,1744097431729,-206.56201684,0.00015,2]
[357511279,1744097431875,-306.0,0.00015,2]
[357511280,1744097431887,-1158.5934276,0.00015,2]
[357511335,1744097437875,-141885.33727313,0.00015,2]
[357511336,1744097437884,-250.0,0.000152,2]
[357511337,1744097437895,-1752.46341922,0.000154,2]
[357511338,1744097437904,-150.26380948,0.000154,2]
[357511339,1744097437914,-200.0,0.0001634,2]
[357511340,1744097437923,-420.0,0.00016416,2]
[357511341,1744097437933,-250.0,0.00016479,2]
[357511342,1744097437943,-250.0,0.000165,2]
[357511343,1744097437952,-587.0,0.00017966,2]
[357511344,1744097437961,-464.13991662,0.00018,2]
[357511345,1744097437970,-500.0,0.00018027,2]
[357511346,1744097437980,-200.0,0.00018333,2]
[357511347,1744097437989,-1681.0,0.00018419,2]
[357511348,1744097437998,-500.0,0.00018795,2]
[357511349,1744097438008,-1041.77,0.00018894,2]
[357511350,1744097438018,-5025.9753274,0.00018894,5]
[357511351,1744097438028,-23900.0,0.00018896,2]
[357511352,1744097438037,-250.0,0.00019,2]
[357511353,1744097438047,-200.0,0.00019224,7]
[357511354,1744097438059,-1500.8115471,0.00019399,2]
[357511355,1744097438070,-164.78,0.00019471,2]
[357511356,1744097438080,-897.0,0.0001953,2]
[357511357,1744097438091,-823.0,0.00019663,2]
[357511358,1744097438102,-1000.0,0.00019681,2]
[357511359,1744097438111,-1026.0,0.000197,2]
[357511360,1744097438121,-1336.0,0.000197,2]
[357511361,1744097438138,-182.30993346,0.000198,2]
[357511362,1744097438153,-500.0,0.00019899,2]
[357511364,1744097438167,-500.0,0.00019899,2]
[357511366,1744097438176,-158.11757326,0.00019899,2]
[357511368,1744097438185,-233076.2234,0.000199,2]
[357511369,1744097438194,-632.5255,0.000199,2]
[357511371,1744097438204,-220.73882976,0.000199,2]
[357511373,1744097438214,-163.49443729,0.000199,2]
[357511375,1744097438224,-160.77360044,0.000199,2]
[357511376,1744097438234,-2041.9527852,0.000199,2]
[357511378,1744097438244,-150.80200609,0.000199,2]
[357511380,1744097438254,-663.33613786,0.000199,2]
[357511382,1744097438264,-458.09270849,0.00019973,2]
[357511384,1744097438274,-500.0,0.00019973,2]
[357511386,1744097438283,-197.66660026,0.00019973,2]
[357511387,1744097438292,-500.0,0.00019973,2]
[357511389,1744097438302,-163.32784889,0.00019973,2]
[357511391,1744097438314,-449.39835575,0.00019973,2]
[357511393,1744097438323,-46.75214451,0.00019973,2]
[357511395,1744097438334,-393.66901821,0.00019973,2]
[357511397,1744097438343,-410.673988,0.00019973,2]
[357511420,1744097440065,-89.326012,0.00019973,2]
[357511422,1744097440074,-500.0,0.00019973,2]
[357511424,1744097440084,-152.42514032,0.00019973,2]
[357511426,1744097440093,-912.697,0.00019973,2]
[357511427,1744097440103,-11231.0708,0.00019995,2]
[357511429,1744097440112,-67717.8645111,0.00019995,2]
[357511431,1744097440121,-4838.9184864,0.00019995,2]
[357511433,1744097440130,-11161.4185537,0.00019995,2]
[357511435,1744097440139,-1851.1316461,0.00019995,2]
[357511437,1744097440148,-622.84454848,0.00019995,2]
[357511439,1744097440157,-617.18404239,0.00019999,2]
[357511441,1744097440166,-1499.0,0.0002,2]
[357511443,1744097440175,-213.27636344,0.0002,2]
[357511445,1744097440184,-108118.65369302,0.0002,2]
[357511447,1744097440193,-4796929.81495685,0.0002,2]
[357511449,1744097440204,-14771.01576278,0.0002,2]
[357511499,1744097446102,-728.977394,0.0002,2]
[357511505,1744097771946,150.25555487,0.00033,120]
[357511627,1744098638249,-171.19,0.00015306,2]
[357511628,1744098638259,-250.0,0.00016808,2]
[357511629,1744098638269,-78.96431203,0.0001863,2]
[357511631,1744098638359,-795.83,0.0001863,2]
[357511764,1744098640475,-185.25568797,0.0001863,2]
[357511766,1744098640486,-250.0,0.00019,2]
[357511768,1744098640495,-154.52,0.00019027,2]
[357511770,1744098640505,-154.52,0.00019034,2]
[357511772,1744098640514,-154.52,0.00019042,2]
[357511774,1744098640524,-154.52,0.0001905,2]
[357511776,1744098640533,-154.52,0.00019058,2]
[357511778,1744098640543,-154.52,0.00019066,2]
[357511780,1744098640553,-154.52,0.00019074,2]
[357511782,1744098640562,-154.52,0.00019082,2]
[357511784,1744098640571,-200.0,0.00019082,7]
[357511786,1744098640580,-500.0,0.00019088,2]
[357511788,1744098640590,-200.0,0.00019088,2]
[357511790,1744098640599,-154.52,0.0001909,2]
[357511792,1744098640609,-154.52,0.00019098,2]
[357511794,1744098640619,-154.52,0.00019106,2]
[357511796,1744098640629,-154.52,0.00019114,2]
[357511797,1744098640638,-154.52,0.00019122,2]
[357511799,1744098640647,-300.0,0.00019157,2]
[357511802,1744098640657,-3178.86994704,0.00019158,2]
[357511804,1744098640669,-20721.13005296,0.00019158,2]
[357511806,1744098640679,-3692.76,0.00019248,2]
[357511808,1744098640688,-1125.6086603,0.00019399,2]
[357511810,1744098640698,-166.66,0.00019826,2]
[357511812,1744098640707,-200.0,0.0001984,2]
[357511814,1744098640717,-912.697,0.00019899,2]
[357511825,1744098640809,-220.73882976,0.000199,2]
[357511827,1744098640819,-632.5255,0.000199,2]
[357511829,1744098640829,-163.49443729,0.000199,2]
[357511831,1744098640838,-32046.8984477,0.000199,2]
[357511833,1744098640847,-37223.76958501,0.000199,2]
[357511835,1744098640857,-150.80200609,0.000199,2]
[357511837,1744098640867,-6606.50238068,0.000199,2]
[357511839,1744098640876,-160.77360044,0.000199,2]
[357511841,1744098640885,-458.09270849,0.00019973,2]
[357511843,1744098640895,-442.5912385,0.00019973,2]
[357511845,1744098640904,-163.32784889,0.00019973,2]
[357511847,1744098640913,-500.0,0.00019973,2]
[357511849,1744098640922,-197.66660026,0.00019973,2]
[357511851,1744098640931,-500.0,0.00019973,2]
[357511853,1744098640940,-152.42514032,0.00019973,2]
[357511855,1744098640949,-2000.0,0.00019994,2]
[357511857,1744098640958,-9649.7956928,0.00019995,2]
[357511859,1744098640967,-78585.8939437,0.00019995,2]
[357511861,1744098640976,-4991.8115267,0.00019995,2]
[357511863,1744098640985,-8997.2085545,0.00019995,2]
[357511865,1744098640995,-500.0,0.00019999,2]
[357511866,1744098641004,-500.0,0.00019999,2]
[357511868,1744098641013,-500.0,0.00019999,2]
[357511870,1744098641022,-500.0,0.00019999,2]
[357511872,1744098641031,-500.0,0.00019999,2]
[357511874,1744098641040,-500.0,0.00019999,2]
[357511876,1744098641049,-500.0,0.00019999,2]
[357511878,1744098641059,-500.0,0.00019999,2]
[357511880,1744098641068,-500.0,0.00019999,2]
[357511882,1744098641077,-500.0,0.00019999,2]
[357511884,1744098641086,-500.0,0.00019999,2]
[357511886,1744098641095,-500.0,0.00019999,2]
[357511888,1744098641104,-500.0,0.00019999,2]
[357511890,1744098641113,-500.0,0.00019999,2]
[357511892,1744098641123,-500.0,0.00019999,2]
[357511894,1744098641132,-500.0,0.00019999,2]
[357511896,1744098641141,-500.0,0.00019999,2]
[357511898,1744098641151,-500.0,0.00019999,2]
[357511900,1744098641160,-500.0,0.00019999,2]
[357511902,1744098641170,-500.0,0.00019999,2]
[357511904,1744098641179,-500.0,0.00019999,2]
[357511906,1744098641194,-500.0,0.00019999,2]
[357511908,1744098641203,-500.0,0.00019999,2]
[357511910,1744098641212,-439.70654513,0.00019999,2]
[357511912,1744098641222,-1498.0,0.0002,2]
[357511914,1744098641232,-213.27636344,0.0002,2]
[357511916,1744098641241,-108118.65369302,0.0002,2]
[357511918,1744098641251,-420961.94693094,0.0002,2]
[357511920,1744098641261,-40766.45891737,0.0002,2]
[357511922,1744098641272,-2008.30443461,0.0002,2]
[357511924,1744098641282,-300.30559924,0.0002,2]
[357511926,1744098641292,-42293.51853665,0.0002,4]
[357511928,1744098641302,-180.65882545,0.0002,2]
[357511931,1744098641311,-4167511.62215356,0.0002,2]
[357512395,1744098646142,-663.33613786,0.000199,2]
[357512397,1744098646153,-6443.01403684,0.0002,2]
[357512429,1744098646474,-389.89834181,0.0002,2]
[357512431,1744098646487,-594.71594574,0.0002,2]
[357512505,1744099059104,-230.56,0.00035671,120]
[357512506,1744099059126,-1000.0,0.00036,120]
[357512507,1744099059150,-538.88,0.000369,120]
[357512508,1744099210965,211.34,0.00035671,120]
[357513289,1744099844223,-717.51004,0.00018758,2]
[357513476,1744099846150,-289.52996,0.00018758,2]
[357513479,1744099846160,-348.82139602,0.00018829,2]
[357513507,1744099846427,-176.58860398,0.00018829,2]
[357513509,1744099846439,-119.77648373,0.00018873,2]
[357513516,1744099846495,-5748.37351627,0.00018873,2]
[357513518,1744099846506,-200.0,0.00018994,2]
[357513520,1744099846515,-151.39596206,0.00019055,2]
[357513522,1744099846527,-1875.13997591,0.00019055,2]
[357513524,1744099846538,-696.23845819,0.00019055,2]
[357513714,1744100572967,566.03,0.00036,120]
[357513715,1744100710863,12645.60298544,0.000154,2]
[357513716,1744100728496,761.3785313,0.00011,2]
[357513719,1744100756569,8593.01848326,6.94e-05,2]
[357513720,1744100756595,10151.79499708,6.94e-05,2]
[357513739,1744100924136,193.72,0.00035671,120]
[357513751,1744101003655,-300.0,0.00014999,2]
[357513752,1744101003688,-7441.40564218,0.00015,2]
[357513753,1744101003735,-7614.27700062,0.00015,2]
[357513780,1744101038394,-14501.78587195,0.00015,2]
[357513781,1744101038405,-27896.6864652,0.00015,2]
[357513782,1744101038420,-540.00000005,0.00015,2]
[357513783,1744101038497,-590.42707663,0.00015,2]
[357513784,1744101038511,-7.90527808,0.00015,2]
[357513785,1744101038524,-278.5955,0.000153,2]
[357513786,1744101038534,-956.68,0.00016159,2]
[357513787,1744101038543,-195.0,0.00016416,2]
[357513788,1744101038552,-1723.85906397,0.00018042,2]
[357513866,1744101040575,-1918.64465877,0.00018042,2]
[357513867,1744101040587,-3206.21627726,0.00018042,2]
[357513868,1744101040596,-200.0,0.00018042,2]
[357513869,1744101040605,-881.14372274,0.00018176,2]
[357513870,1744101040616,-797.6518777,0.00018176,2]
[357513871,1744101040626,-5371.0,0.00018176,2]
[357513872,1744101040687,-1812.51551955,0.00018176,2]
[357513873,1744101040700,-4773.17042528,0.00018176,2]
[357513874,1744101040712,-2506.65489234,0.00018176,2]
[357513875,1744101040726,-1418.51050216,0.00018176,2]
[357513876,1744101040738,-1024.429509,0.00018176,2]
[357513877,1744101040750,-506.2647115,0.00018176,2]
[357513878,1744101040761,-1709.82184084,0.00018176,2]
[357513879,1744101040775,-3098.83699889,0.00018176,2]
[357513880,1744101040784,-200.0,0.00018247,7]
[357513881,1744101040795,-500.0,0.00018274,2]
[357513883,1744101040804,-309.75,0.000183,2]
[357513884,1744101040813,-3649.45,0.00018329,2]
[357513885,1744101040823,-300.94,0.00018367,2]
[357513886,1744101040833,-200.0,0.00018367,2]
[357513887,1744101040843,-3603.01,0.00018401,2]
[357513888,1744101040852,-16538.07,0.00018422,2]
[357513889,1744101040862,-956.68,0.00018423,2]
[357513890,1744101040871,-195.36,0.00018426,2]
[357513891,1744101040884,-150.99,0.00018533,2]
[357513892,1744101040894,-299.99,0.00018533,4]
[357513893,1744101040904,-8688.26,0.00018533,2]
[357513895,1744101040913,-2187.75,0.00018533,2]
[357513897,1744101040923,-150.99,0.00018533,2]
[357513898,1744101040933,-499.99,0.00018533,2]
[357513899,1744101040942,-9999.99,0.00018533,2]
[357513900,1744101040951,-9999.99,0.00018533,2]
[357513901,1744101040962,-763.94,0.00018533,2]
[357513902,1744101040972,-835.06,0.00018533,2]
[357513903,1744101040981,-1000.0,0.00018549,2]
[357513904,1744101040992,-250.0,0.00018553,2]
[357513905,1744101041002,-500.0,0.00018603,2]
[357513906,1744101041011,-150.0,0.00018625,2]
[357513907,1744101041021,-448.5,0.00018625,2]
[357513908,1744101041030,-159.47,0.00018676,2]
[357513909,1744101041040,-289.09964183,0.00018706,2]
[357513910,1744101041050,-500.0,0.00018725,2]
[357513911,1744101041059,-1465.8981,0.000189,2]
[357513912,1744101041069,-200.0,0.00018903,2]
[357513913,1744101041078,-166.66,0.00018918,2]
[357513914,1744101041088,-307.41177928,0.00019,2]
[357513915,1744101041097,-250.0,0.00019,2]
[357513916,1744101041107,-1000.0,0.00019,2]
[357513917,1744101041116,-26001.77390209,0.00019,2]
[357513918,1744101041126,-4899.95560384,0.00019055,2]
[357513919,1744101041135,-185.07,0.00019125,2]
[357513920,1744101041145,-224.2429,0.00019142,2]
[357513921,1744101041155,-4947.5651,0.00019142,2]
[357513922,1744101041164,-973.1371,0.00019142,2]
[357513923,1744101041173,-256.9976,0.00019242,2]
[357513924,1744101041183,-1125.6086603,0.00019399,2]
[357513925,1744101041192,-169.21,0.00019696,2]
[357513926,1744101041201,-166.66,0.00019699,2]
[357513927,1744101041211,-730.158,0.00019899,2]
[357513928,1744101041220,-176.59106384,0.000199,2]
[357513929,1744101041230,-1000.0,0.000199,2]
[357513930,1744101041239,-2500.0,0.000199,2]
[357513931,1744101041248,-1000.0,0.000199,2]
[357513932,1744101041258,-19937.8607,0.000199,2]
[357513933,1744101041267,-163.49443729,0.000199,2]
[357513934,1744101041275,-500.0,0.000199,2]
[357513935,1744101041284,-6606.50238068,0.000199,2]
[357513936,1744101041294,-150.80200609,0.000199,2]
[357513937,1744101041304,-442.2240919,0.000199,2]
[357513938,1744101041314,-319.93602252,0.00019973,2]
[357513939,1744101041323,-159.75984,0.00019973,2]
[357513940,1744101041332,-159.75984,0.00019973,2]
[357513941,1744101041342,-163.32784889,0.00019973,2]
[357513942,1744101041351,-442.5912385,0.00019973,2]
[357513943,1744101041360,-159.75984,0.00019973,2]
[357513944,1744101041370,-159.75984,0.00019973,2]
[357513945,1744101041380,-197.66660026,0.00019973,2]
[357513946,1744101041390,-500.0,0.00019973,2]
[357513947,1744101041399,-152.42514032,0.00019973,2]
[357513948,1744101041408,-500.0,0.00019973,2]
[357513949,1744101041418,-500.0,0.00019973,2]
[357513950,1744101041427,-499.2495,0.00019973,2]
[357513951,1744101041437,-617.18404239,0.00019999,2]
[357513952,1744101041446,-1552.0,0.0002,2]
[357513953,1744101041455,-3537510.75170022,0.0002,2]
[357513954,1744101041465,-359.82263649,0.0002,2]
[357513955,1744101041474,-180.6678584,0.0002,2]
[357513956,1744101041483,-1320347.02373978,0.0002,2]
[357513957,1744101041495,-974.55526154,0.0002,2]
[357513971,1744101043806,-865.55,0.0002,2]
[357513985,1744101046507,-1835.76394901,0.000199,2]
[357513986,1744101046519,-664.23605099,0.000199,2]
[357513987,1744101046528,-1554.0,0.0002,2]
[357513988,1744101046537,-9785.85648306,0.0002,2]
[357513993,1744101067870,228.984237,7.945e-05,2]
[357513994,1744101213218,200.0,0.00010959,2]
[357513999,1744102042482,28.91,0.00035671,120]
[357514006,1744102102056,-200.0,0.00020926,7]
[357514029,1744102231565,-1125.6086603,0.00019399,2]
[357514030,1744102231574,-36.32296249,0.000198,2]
[357514067,1744102237491,-463.67703751,0.000198,2]
[357514068,1744102237501,-231.82255184,0.00019857,2]
[357514069,1744102237510,-912.697,0.00019899,2]
[357514070,1744102237519,-250.0,0.00019899,2]
[357514071,1744102237528,-300.0,0.00019899,2]
[357514072,1744102237538,-1000.0,0.000199,2]
[357514073,1744102237548,-632.5255,0.000199,2]
[357514074,1744102237557,-220.73882976,0.000199,2]
[357514075,1744102237566,-11838.0430809,0.000199,2]
[357514076,1744102237652,-1880.464,0.000199,2]
[357514097,1744102239718,-739.270795,0.000199,2]
[357514098,1744102239770,-5480.0828241,0.000199,2]
[357514099,1744102239779,-3722.37695851,0.000199,2]
[357514100,1744102239789,-1000.0,0.000199,2]
[357514101,1744102239798,-973.1371,0.000199,2]
[357514102,1744102239807,-3204.68984477,0.000199,2]
[357514103,1744102239817,-2500.0,0.000199,2]
[357514104,1744102239826,-3912.4342,0.000199,2]
[357514105,1744102239836,-150.80200609,0.000199,2]
[357514106,1744102239845,-163.49443729,0.000199,2]
[357514107,1744102239854,-160.77360044,0.000199,2]
[357514108,1744102239863,-442.2240919,0.000199,2]
[357514109,1744102239873,-458.09270849,0.00019973,2]
[357514110,1744102239882,-442.5912385,0.00019973,2]
[357514111,1744102239891,-500.0,0.00019973,2]
[357514112,1744102239901,-500.0,0.00019973,2]
[357514113,1744102239911,-152.42514032,0.00019973,2]
[357514114,1744102239920,-500.0,0.00019973,2]
[357514115,1744102239931,-1552.0,0.0002,2]
[357514116,1744102239940,-3594532.45529164,0.0002,2]
[357514117,1744102239949,-1000.0,0.0002,2]
[357514118,1744102239958,-2008.30443461,0.0002,2]
[357514119,1744102239968,-300.30559924,0.0002,2]
[357514120,1744102239977,-16868.80674007,0.0002,2]
[357514121,1744102239986,-42293.51853665,0.0002,4]
[357514122,1744102239995,-359.82263649,0.0002,2]
[357514123,1744102240005,-17000.02672001,0.0002,2]
[357514124,1744102240014,-151.63,0.0002,2]
[357514125,1744102240023,-151.63,0.0002,2]
[357514126,1744102240033,-151.63,0.0002,2]
[357514127,1744102240042,-151.63,0.0002,2]
[357514128,1744102240051,-151.63,0.0002,2]
[357514129,1744102240061,-151.63,0.0002,2]
[357514130,1744102240070,-151.63,0.0002,2]
[357514131,1744102240079,-151.63,0.0002,2]
[357514132,1744102240088,-151.63,0.0002,2]
[357514133,1744102240098,-151.63,0.0002,2]
[357514134,1744102240107,-151.63,0.0002,2]
[357514135,1744102240117,-151.63,0.0002,2]
[357514136,1744102240126,-151.63,0.0002,2]
[357514137,1744102240135,-2000.0,0.0002,4]
[357514139,1744102240145,-151.63,0.00020069,2]
[357514141,1744102240154,-10773.6386711,0.00020079,2]
[357514142,1744102240163,-150.99,0.00020079,2]
[357514144,1744102240172,-1669.53752464,0.0002015,2]
[357514145,1744102240181,-929.0,0.000203,2]
[357514146,1744102240190,-500.0,0.00020411,2]
[357514147,1744102240200,-500.0,0.00020411,2]
[357514148,1744102240209,-500.0,0.00020411,2]
[357514149,1744102240218,-366.35988761,0.00020411,2]
[357514150,1744102240229,-166.66,0.00020479,2]
[357514151,1744102240241,-159.75984,0.00020666,2]
[357514152,1744102240250,-159.75984,0.00020666,2]
[357514153,1744102240259,-159.75984,0.00020666,2]
[357514154,1744102240268,-499.2495,0.00020666,2]
[357514155,1744102240278,-291.64034218,0.00020669,2]
[357514156,1744102240287,-500.0,0.00020669,2]
[357514157,1744102240296,-778.0,0.00020669,2]
[357514158,1744102240305,-500.0,0.00020669,2]
[357514159,1744102240316,-154.14112671,0.00020669,2]